lending/lending_fUSD_20240621
["ID","MTS","AMOUNT","RATE_DAILY","PERIOD"]
[330077662,1718989141463,-500.0,0.00022464,4]
[330077663,1718989141504,-728.36,0.00022464,4]
[330077664,1718989141549,-3237.2,0.00022464,4]
[330077665,1718989141594,-500.0,0.00022464,4]
[330077666,1718989141637,-500.0,0.00022464,4]
[330077667,1718989141682,-500.0,0.00022464,4]
[330077668,1718989141724,-1333.67,0.00022464,4]
[330077669,1718989141767,-504.0,0.00022464,2]
[330077670,1718989141812,-397698.79655058,0.00022465,4]
[330077671,1718989141857,-939.45,0.00022465,4]
[330077672,1718989141900,-500.0,0.00022465,4]
[330077673,1718989141945,-500.0,0.00022465,4]
[330077674,1718989141990,-246.27749962,0.00022465,4]
[330077675,1718989142032,-500.0,0.00022465,4]
[330077676,1718989142075,-1046.79,0.00022465,4]
[330077677,1718989142118,-829.0,0.00022465,4]
[330077678,1718989142161,-500.0,0.00022465,4]
[330077679,1718989142202,-1055.53,0.00022465,4]
[330077680,1718989142245,-500.0,0.00022465,4]
[330077681,1718989142287,-500.0,0.00022465,4]
[330077682,1718989142326,-500.0,0.00022465,4]
[330077683,1718989142369,-500.0,0.00022465,4]
[330077684,1718989142411,-500.0,0.00022465,4]
[330077685,1718989142454,-500.0,0.00022465,4]
[330077686,1718989142495,-500.0,0.00022465,4]
[330077687,1718989142538,-1054.47,0.00022465,4]
[330077688,1718989142581,-502.08912221,0.00022465,4]
[330077689,1718989142622,-500.0,0.00022465,4]
[330077690,1718989142666,-530.5968474,0.00022465,4]
[330077691,1718989142709,-500.0,0.00022465,4]
[330077692,1718989142753,-1320.43,0.00022465,4]
[330077693,1718989142795,-599.27,0.00022465,4]
[330077694,1718989142840,-500.0,0.00022465,4]
[330077695,1718989142896,-500.0,0.00022465,4]
[330077696,1718989142941,-500.0,0.00022465,4]
[330077697,1718989142983,-1034.11,0.00022465,4]
[330077698,1718989143030,-755.09,0.00022465,4]
[330077699,1718989143073,-500.0,0.00022465,4]
[330077700,1718989143116,-680.92,0.00022465,4]
[330077701,1718989143155,-924.86,0.00022465,4]
[330077702,1718989143196,-500.0,0.00022465,4]
[330077703,1718989143241,-500.0,0.00022465,4]
[330077704,1718989143281,-508.96,0.00022465,4]
[330077705,1718989143320,-667.49,0.00022465,4]
[330077706,1718989143360,-575.12,0.00022465,4]
[330077707,1718989143401,-1149.07,0.00022465,4]
[330077708,1718989143443,-500.0,0.00022465,4]
[330077709,1718989143488,-500.0,0.00022465,4]
[330077710,1718989143534,-641.08,0.00022465,4]
[330077711,1718989143581,-858.96,0.00022465,4]
[330077712,1718989143625,-500.0,0.00022465,4]
[330077713,1718989143671,-336.67809529,0.00022465,4]
[330077714,1718989143716,-764.69,0.00022465,4]
[330077715,1718989143759,-500.0,0.00022465,4]
[330077716,1718989143803,-697.17,0.00022465,4]
[330077717,1718989143857,-500.0,0.00022465,4]
[330077718,1718989143904,-683.01,0.00022465,4]
[330077719,1718989143945,-502.08,0.00022465,4]
[330077720,1718989143996,-604.32,0.00022465,4]
[330077721,1718989144286,-500.0,0.00022465,4]
[330077722,1718989144329,-626.67755454,0.00022465,4]
[330077723,1718989144371,-500.0,0.00022465,4]
[330077724,1718989144417,-741.46,0.00022465,4]
[330077725,1718989144472,-500.0,0.00022465,4]
[330077726,1718989144524,-500.0,0.00022465,4]
[330077727,1718989144578,-500.0,0.00022465,4]
[330077728,1718989144620,-500.0,0.00022465,4]
[330077729,1718989144661,-500.0,0.00022465,4]
[330077730,1718989144706,-500.0,0.00022465,4]
[330077731,1718989144751,-600.75,0.00022465,4]
[330077732,1718989144794,-500.0,0.00022465,4]
[330077733,1718989144839,-626.89,0.00022465,4]
[330077734,1718989144889,-500.0,0.00022465,4]
[330077735,1718989144933,-630.23,0.00022465,4]
[330077736,1718989144979,-667.87,0.00022465,4]
[330077737,1718989145024,-1297.45,0.00022465,4]
[330077738,1718989145066,-500.0,0.00022465,4]
[330077739,1718989145110,-500.0,0.00022465,4]
[330077740,1718989145152,-500.0,0.00022465,4]
[330077741,1718989145197,-1399.32,0.00022465,4]
[330077742,1718989145240,-500.0,0.00022465,4]
[330077743,1718989145285,-500.0,0.00022465,4]
[330077744,1718989145328,-500.0,0.00022465,4]
[330077745,1718989145369,-500.0,0.00022465,4]
[330077746,1718989145411,-900.37,0.00022465,4]
[330077747,1718989145455,-742.99,0.00022465,4]
[330077748,1718989145500,-730.15,0.00022465,4]
[330077749,1718989145541,-500.0,0.00022465,4]
[330077750,1718989145584,-1161.0,0.00022465,4]
[330077751,1718989145627,-968.47,0.00022465,4]
[330077752,1718989145671,-500.0,0.00022465,4]
[330077753,1718989145716,-578.7,0.00022465,4]
[330077754,1718989145758,-500.0,0.00022465,4]
[330077755,1718989145800,-500.0,0.00022465,4]
[330077756,1718989145844,-500.0,0.00022465,4]
[330077757,1718989145890,-948.5,0.00022465,4]
[330077758,1718989145933,-500.0,0.00022465,4]
[330077759,1718989145974,-500.0,0.00022465,4]
[330077760,1718989146015,-532.92,0.00022465,4]
[330077761,1718989146058,-500.0,0.00022465,4]
[330077762,1718989146100,-500.0,0.00022465,4]
[330077763,1718989146142,-652.53,0.00022465,4]
[330077764,1718989146182,-806.48,0.00022465,4]
[330077765,1718989146224,-503.92857738,0.00022465,4]
[330077766,1718989146265,-500.0,0.00022465,4]
[330077767,1718989146306,-556.94,0.00022465,4]
[330077768,1718989146346,-500.0,0.00022465,4]
[330077769,1718989146387,-630.9,0.00022465,4]
[330077770,1718989146428,-825.66,0.00022465,4]
[330077771,1718989146470,-500.0,0.00022465,4]
[330077772,1718989146510,-963.53,0.00022465,4]
[330077773,1718989146553,-697.99,0.00022465,4]
[330077774,1718989146595,-1424.78,0.00022465,4]
[330077775,1718989146637,-500.0,0.00022465,4]
[330077776,1718989146677,-500.0,0.00022465,4]
[330077777,1718989146720,-1122.75,0.00022465,4]
[330077778,1718989146763,-2613.66,0.00022465,4]
[330077779,1718989146805,-857.63,0.00022465,4]
[330077780,1718989146858,-500.0,0.00022465,4]
[330077781,1718989146899,-727.53,0.00022465,4]
[330077782,1718989146943,-517.23,0.00022465,4]
[330077783,1718989146987,-500.0,0.00022465,4]
[330077784,1718989147030,-961.15,0.00022465,4]
[330077785,1718989147072,-669.82,0.00022465,4]
[330077786,1718989147120,-500.0,0.00022465,4]
[330077787,1718989147163,-745.8,0.00022465,4]
[330077788,1718989147204,-500.0,0.00022465,4]
[330077789,1718989147253,-1381.93,0.00022465,4]
[330077790,1718989147291,-500.0,0.00022465,4]
[330077791,1718989147330,-500.0,0.00022465,4]
[330077792,1718989147366,-500.0,0.00022465,4]
[330077793,1718989147400,-500.0,0.00022465,4]
[330077794,1718989147436,-500.0,0.00022465,4]
[330077795,1718989147477,-551.78,0.00022465,4]
[330077796,1718989147514,-791.72,0.00022465,4]
[330077797,1718989147548,-1331.83,0.00022465,4]
[330077798,1718989147585,-1073.22,0.00022465,4]
[330077799,1718989147622,-558.32,0.00022465,4]
[330077800,1718989147658,-523.0,0.00022465,4]
[330077801,1718989147694,-500.0,0.00022465,4]
[330077802,1718989147733,-500.0,0.00022465,4]
[330077803,1718989147769,-1338.07,0.00022465,4]
[330077804,1718989147805,-500.0,0.00022465,4]
[330077805,1718989147842,-567.98,0.00022465,4]
[330077806,1718989147883,-500.0,0.00022465,4]
[330077807,1718989147922,-1007.63,0.00022465,4]
[330077808,1718989147959,-734.67,0.00022465,4]
[330077809,1718989148004,-500.0,0.00022465,4]
[330077810,1718989148040,-902.48,0.00022465,4]
[330077811,1718989148074,-592.11,0.00022465,4]
[330077812,1718989148110,-500.0,0.00022465,4]
[330077813,1718989148145,-500.0,0.00022465,4]
[330077814,1718989148181,-500.0,0.00022465,4]
[330077815,1718989148219,-1084.11,0.00022465,4]
[330077816,1718989148255,-500.0,0.00022465,4]
[330077817,1718989148288,-628.67,0.00022465,4]
[330077818,1718989148323,-508.51090046,0.00022465,4]
[330077819,1718989148359,-500.0,0.00022465,4]
[330077820,1718989148393,-1112.98,0.00022465,4]
[330077821,1718989148428,-500.0,0.00022465,4]
[330077822,1718989148463,-500.0,0.00022465,4]
[330077823,1718989148502,-1441.11,0.00022465,4]
[330077824,1718989148540,-250.0,0.00022465,4]
[330077825,1718989148576,-500.0,0.00022465,4]
[330077826,1718989148613,-181.3150646,0.00022465,4]
[330077827,1718989148649,-613.86,0.00022465,4]
[330077828,1718989148686,-669.47,0.00022465,4]
[330077829,1718989148722,-500.0,0.00022465,4]
[330077830,1718989148759,-1300.08,0.00022465,4]
[330077831,1718989148793,-500.0,0.00022465,4]
[330077832,1718989148829,-500.0,0.00022465,4]
[330077833,1718989148866,-500.0,0.00022465,4]
[330077834,1718989150239,-500.0,0.00022465,4]
[330077835,1718989150281,-1066.61,0.00022465,4]
[330077836,1718989150323,-881.23,0.00022465,4]
[330077837,1718989150598,-500.0,0.00022465,4]
[330077838,1718989150638,-952.61,0.00022465,4]
[330077839,1718989150676,-500.0,0.00022465,2]
[330077840,1718989150713,-500.0,0.00022465,4]
[330077841,1718989150754,-500.0,0.00022465,4]
[330077842,1718989150792,-1213.27,0.00022465,4]
[330077843,1718989150829,-785.84,0.00022465,4]
[330077844,1718989150871,-500.0,0.00022465,4]
[330077845,1718989150910,-815.6,0.00022465,4]
[330077846,1718989150947,-816.06,0.00022465,4]
[330077847,1718989150985,-500.0,0.00022465,4]
[330077848,1718989151023,-781.94,0.00022465,4]
[330077849,1718989151064,-742.71,0.00022465,4]
[330077850,1718989151100,-500.0,0.00022465,4]
[330077851,1718989151136,-500.0,0.00022465,4]
[330077852,1718989151173,-920.07,0.00022465,4]
[330077853,1718989151211,-500.0,0.00022465,4]
[330077854,1718989151252,-500.0,0.00022465,4]
[330077855,1718989151288,-935.89,0.00022465,4]
[330077856,1718989151326,-500.0,0.00022465,4]
[330077857,1718989151363,-500.0,0.00022465,4]
[330077858,1718989151400,-512.1,0.00022465,4]
[330077859,1718989151438,-500.0,0.00022465,4]
[330077860,1718989151474,-500.0,0.00022465,4]
[330077861,1718989151510,-736.93,0.00022465,4]
[330077862,1718989151547,-954.31,0.00022465,4]
[330077863,1718989151585,-500.0,0.00022465,4]
[330077864,1718989151621,-556.99,0.00022465,4]
[330077865,1718989151656,-527.62,0.00022465,4]
[330077866,1718989151693,-887.18,0.00022465,4]
[330077867,1718989151730,-500.0,0.00022465,4]
[330077868,1718989151768,-500.0,0.00022465,4]
[330077869,1718989151810,-500.0,0.00022465,4]
[330077870,1718989151854,-558.12,0.00022465,4]
[330077871,1718989151895,-500.0,0.00022465,4]
[330077872,1718989151936,-500.0,0.00022465,4]
[330077873,1718989151976,-652.29,0.00022465,4]
[330077874,1718989152015,-500.0,0.00022465,4]
[330077875,1718989152054,-840.32,0.00022465,4]
[330077876,1718989152091,-847.29,0.00022465,4]
[330077877,1718989152131,-500.0,0.00022465,4]
[330077878,1718989152170,-500.0,0.00022465,4]
[330077879,1718989152208,-500.0,0.00022465,4]
[330077880,1718989152244,-853.36,0.00022465,4]
[330077881,1718989152282,-500.0,0.00022465,4]
[330077882,1718989152319,-500.0,0.00022465,4]
[330077883,1718989152357,-500.0,0.00022465,4]
[330077884,1718989152402,-1081.0,0.00022465,4]
[330077885,1718989152439,-500.0,0.00022465,4]
[330077886,1718989152474,-500.0,0.00022465,4]
[330077887,1718989152508,-500.0,0.00022465,4]
[330077888,1718989152543,-500.0,0.00022465,4]
[330077889,1718989152579,-500.0,0.00022465,4]
[330077890,1718989152619,-500.0,0.00022465,4]
[330077891,1718989152656,-359.75448099,0.00022465,4]
[330077892,1718989152698,-931.63,0.00022465,4]
[330077893,1718989152740,-500.0,0.00022465,4]
[330077894,1718989152777,-500.0,0.00022465,4]
[330077895,1718989152816,-762.93,0.00022465,4]
[330077896,1718989152856,-500.0,0.00022465,4]
[330077897,1718989152894,-673.38,0.00022465,4]
[330077898,1718989152933,-500.0,0.00022465,4]
[330077899,1718989152975,-500.0,0.00022465,4]
[330077900,1718989153015,-706.69,0.00022465,4]
[330077901,1718989153055,-612.35,0.00022465,4]
[330077902,1718989153094,-500.0,0.00022465,4]
[330077903,1718989153131,-500.0,0.00022465,4]
[330077904,1718989153169,-1430.27,0.00022465,4]
[330077905,1718989153211,-987.57,0.00022465,4]
[330077906,1718989153254,-500.0,0.00022465,4]
[330077907,1718989153297,-627.93,0.00022465,4]
[330077908,1718989153340,-500.0,0.00022465,4]
[330077909,1718989153376,-617.49,0.00022465,4]
[330077910,1718989153412,-500.0,0.00022465,4]
[330077911,1718989153447,-1185.05,0.00022465,4]
[330077912,1718989153484,-500.0,0.00022465,4]
[330077913,1718989153520,-500.0,0.00022465,4]
[330077914,1718989153558,-713.85,0.00022465,4]
[330077915,1718989153595,-500.0,0.00022465,4]
[330077916,1718989153632,-595.68,0.00022465,4]
[330077917,1718989153670,-508.4,0.00022465,4]
[330077918,1718989153708,-631.99,0.00022465,4]
[330077919,1718989153745,-1075.92,0.00022465,4]
[330077920,1718989153781,-500.0,0.00022465,4]
[330077921,1718989153818,-500.0,0.00022465,4]
[330077922,1718989153856,-500.0,0.00022465,4]
[330077923,1718989153895,-605.96,0.00022465,4]
[330077924,1718989153936,-500.0,0.00022465,4]
[330077925,1718989153973,-511.82,0.00022465,4]
[330077926,1718989154008,-500.0,0.00022465,4]
[330077927,1718989154046,-500.0,0.00022465,4]
[330077928,1718989154081,-1346.43,0.00022465,4]
[330077929,1718989154116,-500.0,0.00022465,4]
[330077930,1718989154153,-821.04,0.00022465,4]
[330077931,1718989154189,-500.0,0.00022465,4]
[330077932,1718989154226,-500.0,0.00022465,4]
[330077933,1718989154261,-500.0,0.00022465,4]
[330077934,1718989154298,-500.0,0.00022465,4]
[330077935,1718989154335,-500.0,0.00022465,4]
[330077936,1718989154374,-500.0,0.00022465,4]
[330077937,1718989154410,-1223.11,0.00022465,4]
[330077938,1718989154448,-500.0,0.00022465,4]
[330077939,1718989154482,-500.0,0.00022465,4]
[330077940,1718989154518,-500.0,0.00022465,4]
[330077941,1718989154556,-540.42,0.00022465,4]
[330077942,1718989154594,-500.0,0.00022465,4]
[330077943,1718989154631,-235.11290859,0.00022465,4]
[330077944,1718989154667,-577.17,0.00022465,4]
[330077945,1718989154701,-1010.38,0.00022465,4]
[330077946,1718989154743,-500.0,0.00022465,4]
[330077947,1718989154779,-500.0,0.00022465,4]
[330077948,1718989154814,-713.59,0.00022465,4]
[330077949,1718989154853,-500.0,0.00022465,4]
[330077950,1718989154892,-673.9,0.00022465,4]
[330077951,1718989154934,-500.0,0.00022465,4]
[330077952,1718989154973,-595.96,0.00022465,4]
[330077953,1718989155192,-500.0,0.00022465,4]
[330077954,1718989155258,-500.0,0.00022465,4]
[330077955,1718989155295,-780.85,0.00022465,4]
[330077956,1718989155339,-500.0,0.00022465,4]
[330077957,1718989155383,-2230.36,0.00022465,4]
[330077958,1718989155422,-812.96,0.00022465,4]
[330077959,1718989155460,-500.0,0.00022465,4]
[330077960,1718989155500,-500.0,0.00022465,4]
[330077961,1718989155538,-583.22,0.00022465,4]
[330077962,1718989155578,-500.0,0.00022465,4]
[330077963,1718989155615,-527.6,0.00022465,4]
[330077964,1718989155654,-500.0,0.00022465,4]
[330077965,1718989155690,-716.45,0.00022465,4]
[330077966,1718989155730,-500.0,0.00022465,4]
[330077967,1718989155768,-1675.29,0.00022465,4]
[330077968,1718989155808,-500.0,0.00022465,4]
[330077969,1718989155848,-2341.37,0.00022465,4]
[330077970,1718989155886,-904.15,0.00022465,4]
[330077971,1718989155928,-500.0,0.00022465,4]
[330077972,1718989155964,-737.08,0.00022465,4]
[330077973,1718989156005,-500.0,0.00022465,4]
[330077974,1718989156044,-500.0,0.00022465,4]
[330077975,1718989156086,-500.0,0.00022465,4]
[330077976,1718989156126,-854.49,0.00022465,4]
[330077977,1718989156167,-1414.89,0.00022465,4]
[330077978,1718989156205,-500.0,0.00022465,4]
[330077979,1718989156250,-523.56,0.00022465,4]
[330077980,1718989156286,-500.0,0.00022465,4]
[330077981,1718989156321,-500.0,0.00022465,4]
[330077982,1718989156359,-527.99,0.00022465,4]
[330077983,1718989156395,-500.0,0.00022465,4]
[330077984,1718989156430,-500.0,0.00022465,4]
[330077985,1718989156464,-500.0,0.00022465,4]
[330077986,1718989156503,-1478.35,0.00022465,4]
[330077987,1718989156541,-1641.43,0.00022465,4]
[330077988,1718989156578,-638.94,0.00022465,4]
[330077989,1718989156613,-1102.1,0.00022465,4]
[330077990,1718989156650,-503.09,0.00022465,4]
[330077991,1718989156689,-500.0,0.00022465,4]
[330077992,1718989156733,-598.0,0.00022465,4]
[330077993,1718989156777,-500.0,0.00022465,4]
[330077994,1718989156822,-842.59,0.00022465,4]
[330077995,1718989156867,-500.0,0.00022465,4]
[330077996,1718989156906,-500.0,0.00022465,4]
[330077997,1718989156943,-5000.0,0.00022465,4]
[330077998,1718989156982,-1208.66,0.00022465,4]
[330077999,1718989157021,-745.93,0.00022465,4]
[330078000,1718989157060,-1166.84,0.00022465,4]
[330078001,1718989157098,-500.0,0.00022465,4]
[330078002,1718989157136,-500.0,0.00022465,7]
[330078003,1718989157176,-500.0,0.00022465,4]
[330078004,1718989157218,-675.87,0.00022465,4]
[330078005,1718989157261,-500.0,0.00022465,4]
[330078006,1718989157300,-500.0,0.00022465,4]
[330078007,1718989157340,-1329.84,0.00022465,4]
[330078008,1718989157378,-500.0,0.00022465,4]
[330078009,1718989157416,-500.0,0.00022465,4]
[330078010,1718989157457,-1244.41,0.00022465,4]
[330078011,1718989157497,-1110.3,0.00022465,4]
[330078012,1718989157534,-1120.29,0.00022465,4]
[330078013,1718989157573,-529.2,0.00022465,4]
[330078014,1718989157611,-625.53,0.00022465,4]
[330078015,1718989157654,-500.0,0.00022465,4]
[330078016,1718989157692,-1049.53,0.00022465,4]
[330078017,1718989157727,-500.0,0.00022465,4]
[330078018,1718989157764,-500.0,0.00022465,4]
[330078019,1718989157802,-500.0,0.00022465,4]
[330078020,1718989157840,-504.12514686,0.00022465,4]
[330078021,1718989157887,-500.0,0.00022465,4]
[330078022,1718989157928,-500.0,0.00022465,4]
[330078023,1718989157970,-500.0,0.00022465,4]
[330078024,1718989158008,-500.0,0.00022465,4]
[330078025,1718989158046,-500.0,0.00022465,4]
[330078026,1718989158084,-1552.35,0.00022465,4]
[330078027,1718989158125,-918.31,0.00022465,4]
[330078028,1718989158170,-536.86,0.00022465,4]
[330078029,1718989158213,-500.0,0.00022465,4]
[330078030,1718989158253,-500.0,0.00022465,4]
[330078031,1718989158292,-600.92,0.00022465,4]
[330078032,1718989158333,-573.57,0.00022465,4]
[330078033,1718989158370,-2593.5,0.00022465,4]
[330078034,1718989158408,-614.38,0.00022465,4]
[330078035,1718989158446,-500.0,0.00022465,4]
[330078036,1718989158487,-500.0,0.00022465,4]
[330078037,1718989158525,-500.0,0.00022465,4]
[330078038,1718989158568,-500.0,0.00022465,4]
[330078039,1718989158608,-500.0,0.00022465,4]
[330078040,1718989158647,-500.0,0.00022465,4]
[330078041,1718989158686,-500.0,0.00022465,4]
[330078042,1718989158725,-1358.67,0.00022465,4]
[330078043,1718989158764,-1704.8,0.00022465,4]
[330078044,1718989158806,-500.0,0.00022465,2]
[330078045,1718989158850,-789.83,0.00022465,4]
[330078046,1718989158890,-500.0,0.00022465,4]
[330078047,1718989158931,-500.0,0.00022465,4]
[330078048,1718989158974,-580.39,0.00022465,4]
[330078049,1718989159013,-500.0,0.00022465,4]
[330078050,1718989159057,-1727.55,0.00022465,4]
[330078051,1718989159097,-1153.51,0.00022465,4]
[330078052,1718989159139,-888.36,0.00022465,4]
[330078053,1718989159180,-500.0,0.00022465,4]
[330078054,1718989159219,-559.95,0.00022465,4]
[330078055,1718989159264,-1728.03,0.00022465,4]
[330078056,1718989159304,-500.0,0.00022465,4]
[330078057,1718989159344,-840.1,0.00022465,4]
[330078058,1718989159384,-551.97,0.00022465,4]
[330078059,1718989159423,-500.0,0.00022465,4]
[330078060,1718989159462,-581.3,0.00022465,4]
[330078061,1718989159508,-500.0,0.00022465,4]
[330078062,1718989159549,-340.29199925,0.00022465,4]
[330078063,1718989159591,-467.88073104,0.00022465,4]
[330078064,1718989159629,-500.0,0.00022465,4]
[330078065,1718989159670,-500.0,0.00022465,4]
[330078066,1718989159708,-514.36,0.00022465,4]
[330078067,1718989159749,-500.0,0.00022465,4]
[330078068,1718989159787,-500.0,0.00022465,4]
[330078069,1718989160051,-500.0,0.00022465,4]
[330078070,1718989160093,-1809.78,0.00022465,4]
[330078071,1718989160131,-1193.59,0.00022465,4]
[330078072,1718989160169,-710.42,0.00022465,4]
[330078073,1718989160209,-952.28,0.00022465,4]
[330078074,1718989160246,-788.5,0.00022465,4]
[330078075,1718989160284,-738.08,0.00022465,4]
[330078076,1718989160323,-921.65,0.00022465,4]
[330078077,1718989160360,-500.0,0.00022465,4]
[330078078,1718989160397,-664.19,0.00022465,4]
[330078079,1718989160436,-1125.8,0.00022465,4]
[330078080,1718989160476,-500.0,0.00022465,4]
[330078081,1718989160513,-948.77,0.00022465,4]
[330078082,1718989160551,-2054.16,0.00022465,4]
[330078083,1718989160590,-1141.26,0.00022465,4]
[330078084,1718989160628,-953.06,0.00022465,4]
[330078085,1718989160667,-500.0,0.00022465,4]
[330078086,1718989160704,-500.0,0.00022465,4]
[330078087,1718989160743,-500.0,0.00022465,4]
[330078088,1718989160781,-1511.18,0.00022465,4]
[330078089,1718989160820,-1244.28,0.00022465,4]
[330078090,1718989160862,-576.67,0.00022465,4]
[330078091,1718989160900,-1743.39,0.00022465,4]
[330078092,1718989160940,-2173.9,0.00022465,4]
[330078093,1718989160979,-540.71,0.00022465,4]
[330078094,1718989161019,-948.86,0.00022465,4]
[330078095,1718989161056,-500.0,0.00022465,4]
[330078096,1718989161093,-500.0,0.00022465,4]
[330078097,1718989161132,-500.0,0.00022465,4]
[330078098,1718989161170,-1674.61,0.00022465,4]
[330078099,1718989161208,-669.81,0.00022465,4]
[330078100,1718989161246,-500.0,0.00022465,4]
[330078101,1718989161285,-500.0,0.00022465,4]
[330078102,1718989161325,-200.0,0.00022465,4]
[330078103,1718989161364,-805.69,0.00022465,4]
[330078104,1718989161402,-500.0,0.00022465,4]
[330078105,1718989161439,-1406.58,0.00022465,4]
[330078106,1718989161478,-500.0,0.00022465,4]
[330078107,1718989161516,-712.34,0.00022465,4]
[330078108,1718989161556,-714.53,0.00022465,4]
[330078109,1718989161596,-1080.92,0.00022465,4]
[330078110,1718989161633,-717.33,0.00022465,4]
[330078111,1718989161671,-500.0,0.00022465,4]
[330078112,1718989161709,-1926.29,0.00022465,4]
[330078113,1718989161752,-973.55,0.00022465,4]
[330078114,1718989161791,-286.59189512,0.00022465,4]
[330078115,1718989161829,-826.02,0.00022465,4]
[330078116,1718989161870,-500.0,0.00022465,4]
[330078117,1718989161910,-529.09,0.00022465,4]
[330078118,1718989161947,-500.0,0.00022465,4]
[330078119,1718989161987,-586.43,0.00022465,4]
[330078120,1718989162026,-557.92,0.00022465,4]
[330078121,1718989162067,-2232.82,0.00022465,4]
[330078122,1718989162107,-500.0,0.00022465,4]
[330078123,1718989162148,-500.0,0.00022465,4]
[330078124,1718989162187,-974.98,0.00022465,4]
[330078125,1718989162226,-500.0,0.00022465,4]
[330078126,1718989162263,-500.0,0.00022465,4]
[330078127,1718989162301,-500.0,0.00022465,4]
[330078128,1718989162337,-673.14,0.00022465,4]
[330078129,1718989162375,-595.1,0.00022465,4]
[330078130,1718989162412,-500.0,0.00022465,4]
[330078131,1718989162449,-500.0,0.00022465,4]
[330078132,1718989162486,-842.73,0.00022465,4]
[330078133,1718989162525,-500.0,0.00022465,4]
[330078134,1718989162564,-227.20349815,0.00022465,4]
[330078135,1718989162604,-500.0,0.00022465,4]
[330078136,1718989162644,-1273.54,0.00022465,4]
[330078137,1718989162683,-511.16,0.00022465,4]
[330078138,1718989162722,-500.0,0.00022465,8]
[330078139,1718989162760,-875.9,0.00022465,4]
[330078140,1718989162800,-772.24,0.00022465,4]
[330078141,1718989162838,-500.0,0.00022465,4]
[330078142,1718989162878,-1837.22,0.00022465,4]
[330078143,1718989162917,-656.6,0.00022465,4]
[330078144,1718989162955,-1557.92,0.00022465,4]
[330078145,1718989162994,-651.56,0.00022465,4]
[330078146,1718989163033,-500.0,0.00022465,4]
[330078147,1718989163073,-500.0,0.00022465,4]
[330078148,1718989163113,-590.21,0.00022465,4]
[330078149,1718989163150,-725.12,0.00022465,4]
[330078150,1718989163188,-568.75,0.00022465,4]
[330078151,1718989163225,-1561.0,0.00022465,4]
[330078152,1718989163264,-897.44,0.00022465,4]
[330078153,1718989163302,-500.0,0.00022465,4]
[330078154,1718989163342,-768.92,0.00022465,4]
[330078155,1718989163381,-1147.1,0.00022465,4]
[330078156,1718989163419,-643.42,0.00022465,4]
[330078157,1718989163455,-500.0,0.00022465,4]
[330078158,1718989163496,-767.44,0.00022465,4]
[330078159,1718989163535,-675.53,0.00022465,4]
[330078160,1718989163572,-561.39,0.00022465,4]
[330078161,1718989163609,-845.8,0.00022465,4]